Cogmind - Beta 15 @@@ ROGUE MODE // 2025.05.26 @ 00:29:35 Player: Skysub Result: Destroyed by ZH-YJL(R) with Subdweller Machine Gun Performance ------------- Evolutions (0) 0 Regions Visited (3) 600 Robots Destroyed (20) 100 Value Destroyed (496) 496 Prototype IDs (0) 0 Alien Tech Used (0) 0 Bonus (0) 0 TOTAL SCORE: 1196 Bonus ------- None Cogmind --------- Core Integrity 0/250 Matter 238/300 Energy 64/100 System Corruption 1% Temperature Cool (60) Movement Treading (240) Ox1 Location -10/Subcaves Parts ------- > --- POWER (1) -------- (None) > --- PROPULSION (2) --- Light Treads > --- UTILITY (2) ------ Large Storage Unit Structural Scanner > --- WEAPON (2) ------- Maul > --- INVENTORY (15) --- Compact Wheel Small Storage Unit Hacking Suite Peak State ------------ > --- POWER ------------ Ion Engine > --- PROPULSION ------- Wheel Compact Wheel > --- UTILITY ---------- Large Storage Unit Structural Scanner > --- WEAPON ----------- Assault Rifle Light Assault Rifle > --- INVENTORY -------- Light Treads Light Treads Wheel Compact Wheel Small Storage Unit Hacking Suite Maul [Rating: 8] Favorites ----------- Power Ion Engine Engine Ion Engine Propulsion Light Treads Treads Light Treads Wheel Compact Wheel Utility Large Storage Unit Device Structural Scanner Storage Large Storage Unit Weapon Assault Rifle Ballistic Gun Assault Rifle Impact Weapon Maul Build | -11 -10 -10 -10 ------- Run | Yrd Mat Min Sub Slots Evolved . | . . . . Power . | . . . . Propulsion . | . . . . Utility . | . . . . Weapon . | . . . . Parts Attached 17 | 7 6 2 2 Power 2 | 1 1 . . Engine 2 | 1 1 . . Core . | . . . . Reactor . | . . . . Propulsion 7 | 3 2 1 1 Treads 4 | 2 1 . 1 Leg . | . . . . Wheel 3 | 1 1 1 . Hover . | . . . . Flight . | . . . . Utility 4 | 1 2 1 . Device 2 | . 1 1 . Storage 2 | 1 1 . . Processor . | . . . . Hackware . | . . . . Protection . | . . . . Artifact . | . . . . Weapon 4 | 2 1 . 1 Energy Gun . | . . . . Energy Cannon . | . . . . Ballistic Gun 3 | 2 1 . . Ballistic Cannon . | . . . . Launcher . | . . . . Special Weapon . | . . . . Impact Weapon 1 | . . . 1 Slashing Weapon . | . . . . Piercing Weapon . | . . . . Special Melee Weapon . | . . . . Unidentified Prototypes . | . . . . Parts Lost 11 | . 4 3 4 Power 2 | . 1 1 . Propulsion 5 | . 2 1 2 Utility 1 | . . 1 . Weapon 3 | . 1 . 2 Highest Loss Streak 4 | . 4 2 4 To Critical Strikes . | . . . . Average Backups 5 | 2 5 6 5 Power . | . . . . Propulsion 2 | 1 2 3 2 Utility 1 | . 1 2 2 Weapon . | . . 1 1 Tool/Special . | . . . . Unused Backups 2 | . . . 2 Power . | . . . . Propulsion 1 | . . . 1 Utility 1 | . . . 1 Weapon . | . . . . Tool/Special . | . . . . Average Slot Usage (%) 91 | . 90 96 81 Engine 11 | . 12 13 . Treads 10 | . 21 . . Wheel 15 | . 4 28 25 Device 9 | . 8 10 14 Storage 14 | . 14 14 14 Ballistic Gun 27 | . 27 28 26 Peak Build Rating 8 | 6 8 8 6 Average Rating 6 | 5 6 7 5 On Entrance 5 | . 6 8 6 Naked Turns . | . . . . Heaviest Build 30 | 14 30 29 24 Greatest Support 40 | 40 40 26 26 Greatest Overweight (x) 7 | . 7 1 . Average Overweight (x) . | . . . . Largest Inventory Capacity 15 | 8 15 15 15 Average Capacity 13 | 6 11 15 15 Most Carried 7 | 3 7 7 5 Average Carried 5 | 2 5 6 4 Final Capacity 15 | 8 15 15 15 Final Carried 7 | 3 7 6 3 Class Distribution -------------------- 100% | Mutant Dominant Class ---------------- Mutant | -10/Materials Mutant | -10/Mines Mutant | -10/Subcaves Resources | -11 -10 -10 -10 ----------- Run | Yrd Mat Min Sub Matter Collected 541 | 244 223 50 24 Remotely . | . . . . Salvage Created 582 | . 521 61 . Parts 35 | . 25 10 . Haulers Intercepted . | . . . . Recyclers Shooed . | . . . . Parts Field Recycled . | . . . . Retrieved Matter . | . . . . Parts Self-Destructed 2 | . . . 2 Prevented . | . . . . Kills | -11 -10 -10 -10 ------- Run | Yrd Mat Min Sub Combat Hostiles Destroyed 16 | . 11 5 . Guns 16 | . 11 5 . Classes Destroyed 6 | . 5 1 . Builder 2 | . 1 1 . Recycler 1 | . 1 . . Operator 1 | . 1 . . Swarmer 6 | . 3 3 . Grunt 8 | . 8 . . Demolisher 2 | . . 2 . Best Kill Streak 4 | . 4 3 . Combat Bots Only 4 | . 4 3 . Max Kills in Single Turn 1 | . 1 1 . Gunslinging . | . . . . Exploded . | . . . . Melee . | . . . . Uniques/NPCs Destroyed . | . . . . Combat | -11 -10 -10 -10 -------- Run | Yrd Mat Min Sub Hostile Shots Fired 108 | . 77 17 14 Missed 19 | . 13 4 2 Hits 89 | . 64 13 12 Projectile 89 | . 64 13 12 AOE 3 | . . 3 . Critical Strikes 4 | . 2 . 2 Damage Taken 1260 | . 776 238 246 Core 260 | . 132 70 58 Absorbed by Shields . | . . . . Core Remaining (%) 100 | 100 . . . Volleys Fired 60 | . 39 15 6 Largest 2 | . 2 2 2 Hottest 40 | . 40 40 40 Shots Fired 116 | . 77 30 9 Gun 116 | . 77 30 9 Cannon . | . . . . Launcher . | . . . . Special . | . . . . Kinetic 116 | . 77 30 9 Thermal . | . . . . Explosive . | . . . . Electromagnetic . | . . . . Robot Hit Streak 16 | . 16 5 3 Robot Miss Streak 3 | . 2 3 2 Penetration Max . | . . . . Secondary Targets 3 | . 2 1 . Max Gunslinging Chain 1 | . 1 1 . Shots Hit Robots 78 | . 55 17 6 Core Hits 35 | 1 24 8 2 Critical Kills 1 | . . 1 . Critical Parts Destroyed . | . . . . Critical Strikes 1 | . . 1 . Destroy 1 | . . 1 . Melee Attacks . | . . . . Impact . | . . . . Slashing . | . . . . Piercing . | . . . . Sneak Attacks . | . . . . Combat Hostiles . | . . . . Follow-up Attacks . | . . . . Damage Inflicted 1017 | 3 720 228 66 Guns 942 | . 691 185 66 Cannons . | . . . . Explosions . | . . . . Melee . | . . . . Ramming 75 | 3 29 43 . Kinetic 942 | . 691 185 66 Thermal . | . . . . Explosive . | . . . . Electromagnetic . | . . . . Impact . | . . . . Slashing . | . . . . Piercing . | . . . . Highest Corruption 1 | . 1 1 1 Average Corruption 1 | . 1 1 1 Corruption Purged . | . . . . Corruption Blocked . | . . . . Effects 12 | . 1 8 3 Message Errors 2 | . . 2 . Matter Fused 2 | . . 2 . Heat Flow Errors 2 | . . . 2 Energy Discharges 1 | . . 1 . Data Loss (minor) 3 | . 1 1 1 Data Loss (major) 1 | . . 1 . Alerts 1 | . . 1 . Overload Shots . | . . . . Overflow Damage . | . . . . Projectiles . | . . . . Explosions . | . . . . Melee . | . . . . Knockbacks . | . . . . Impact . | . . . . Kinetic . | . . . . Secondary . | . . . . Self-Inflicted Damage 33 | . 12 21 . Shots . | . . . . Rammed 10 | 1 6 3 . Targets Rammed 10 | 1 6 3 . Kicked . | . . . . Crushed . | . . . . Highest Temperature 69 | . 21 . 69 Average Temperature 11 | . 7 . 51 Received Heat Transfer 444 | . 420 24 . Siege Activations . | . . . . Martial Activations . | . . . . Shielding Activations . | . . . . Robots Disrupted . | . . . . Combat Hostiles . | . . . . Robots Corrupted . | . . . . Combat Hostiles . | . . . . Parts Fried . | . . . . Impact Corruptions . | . . . . Robots Melted . | . . . . Combat Hostiles . | . . . . Parts Melted . | . . . . Heat Transferred . | . . . . Parts Sabotaged . | . . . . Parts Stolen . | . . . . Parts Stripped . | . . . . Power Chain Reactions . | . . . . Alert | -11 -10 -10 -10 ------- Run | Yrd Mat Min Sub Maximum Alert Level . | . . . . Low Security (%) 100 | 100 100 100 . Level 1 . | . . . . Level 2 . | . . . . Level 3 . | . . . . Level 4 . | . . . . Level 5 . | . . . . High Security . | . . . . Max Security . | . . . . Peak Influence 122 | . 122 88 . Initial 28 | . . 28 . Average 24 | . 34 17 . Influence Increases 479 | . 324 155 . Destroy 0b10 Robot/C 320 | . 220 100 . Destroy 0b10 Robot/NC 20 | . 15 5 . Destroy Leader 60 | . 40 20 . Successful Hack 33 | . 33 . . Destroy Structure 1 | . 1 . . Lose Combat Pursuer 45 | . 15 30 . Influence Decreases 479 | . 250 215 14 Entered New Map 54 | . . 46 8 Time Decay 355 | . 210 139 6 Lost Part 70 | . 40 30 . Squads Dispatched 2 | . 2 . . Investigation 2 | . 2 . . Extermination . | . . . . Reinforcement . | . . . . Assault . | . . . . Garrison . | . . . . Intercept . | . . . . Searches Triggered . | . . . . Construction Impeded . | . . . . Haulers Reinforced . | . . . . Active Scanning Responses . | . . . . Cargo Convoy Interrupts . | . . . . Stealth | -11 -10 -10 -10 --------- Run | Yrd Mat Min Sub Distress Signals 2 | . 1 1 . Communications Jammed . | . . . . Distress Signals . | . . . . Times Spotted 30 | . 21 7 2 Peak Tracking Total 7 | . 7 2 2 Tactical Retreats 2 | . 1 1 . Traps | -11 -10 -10 -10 ------- Run | Yrd Mat Min Sub Traps Triggered 2 | . 2 . . Indirectly . | . . . . Trap Hack Attempts . | . . . . Triggered . | . . . . Disarmed . | . . . . Reprogrammed . | . . . . Reused . | . . . . Traps Extracted . | . . . . Installed . | . . . . Triggered . | . . . . Machines | -11 -10 -10 -10 ---------- Run | Yrd Mat Min Sub Machines Disabled . | . . . . Max in Single Turn . | . . . . Machines Repaired . | . . . . Machines Dismantled . | . . . . Machines Sabotaged . | . . . . Overloaded Fab Kills . | . . . . Hacking | -11 -10 -10 -10 --------- Run | Yrd Mat Min Sub Machines Accessed 5 | . 5 . . Terminals 5 | . 5 . . Fabricators . | . . . . Repair Stations . | . . . . Recycling Units . | . . . . Scanalyzers . | . . . . Garrison Access . | . . . . Total Hacks 16 | . 16 . . Successful 9 | . 9 . . Failed 7 | . 7 . . Catastrophic . | . . . . Database Lockouts . | . . . . Manual 10 | . 10 . . Terminals 16 | . 16 . . Fabricators . | . . . . Repair Stations . | . . . . Recycling Units . | . . . . Scanalyzers . | . . . . Garrison Access . | . . . . Terminal Hacks 5 | . 5 . . Branch Access Points 1 | . 1 . . Emergency Access Points 1 | . 1 . . Registered Components 1 | . 1 . . Zone Layout 2 | . 2 . . Fabricator Hacks . | . . . . Repair Station Hacks . | . . . . Recycling Unit Hacks . | . . . . Scanalyzer . | . . . . Garrison Access Hacks . | . . . . Unauthorized Hacks 4 | . 4 . . Terminals 4 | . 4 . . Botnet 4 | . 4 . . Fabricators . | . . . . Repair Stations . | . . . . Recycling Units . | . . . . Scanalyzers . | . . . . Garrison Access . | . . . . Data Cores Recovered 1 | . 1 . . Used . | . . . . Hacking Detections 5 | . 5 . . Full Trace Events 1 | . 1 . . Feedback Events . | . . . . Feedback Blocked . | . . . . Robot Schematics Acquired . | . . . . Robots Built . | . . . . Authchips . | . . . . Time . | . . . . Total Robot Build Rating . | . . . . Part Schematics Acquired . | . . . . Parts Built . | . . . . Authchips . | . . . . Time . | . . . . Total Part Build Rating . | . . . . Parts Repaired . | . . . . Time . | . . . . Parts Recycled . | . . . . Recycled Matter . | . . . . Retrieved Matter . | . . . . Retrieved Components . | . . . . Parts Scanalyzed . | . . . . Part Schematics Acquired . | . . . . Parts Damaged . | . . . . Bothacking | -11 -10 -10 -10 ------------ Run | Yrd Mat Min Sub Used RIF Installer . | . . . . Robots Hacked . | . . . . Non-combat . | . . . . Combat . | . . . . Robot Hacks Applied . | . . . . Relay Couplers Released . | . . . . Fabnet Peak Effective % . | . . . . Robots Rewired . | . . . . Allies Hacked . | . . . . Hacks Repelled . | . . . . Allies | -11 -10 -10 -10 -------- Run | Yrd Mat Min Sub Total Allies . | . . . . Largest Group . | . . . . Highest-Rated Group . | . . . . Highest-Rated Ally . | . . . . Total Orders . | . . . . Ally Attacks . | . . . . Total Damage . | . . . . Kills . | . . . . Allies Corrupted . | . . . . Allies Melted . | . . . . Intel | -11 -10 -10 -10 ------- Run | Yrd Mat Min Sub Active Infowar (turns) 1060 | . 456 463 141 Structural 1060 | . 456 463 141 Robot Analysis Total . | . . . . Derelict Logs Recovered 2 | . . 2 . Drone Launches . | . . . . Drone Recoveries . | . . . . Exploration | -11 -10 -10 -10 ------------- Run | Yrd Mat Min Sub Turns Passed 1609 | 110 762 596 141 Spaces Moved 1129 | 65 417 526 121 Core 13 | 7 6 . . Treads 344 | 58 286 . . Legs . | . . . . Wheels 772 | . 125 526 121 Hover . | . . . . Flight . | . . . . Fastest Speed 50 | 50 105 90 90 Average Speed 121 | 148 149 104 90 Slowest Speed 400 | 160 400 115 90 Overloaded Moves . | . . . . Propulsion Burnouts . | . . . . Robots Hopped . | . . . . Potential Cave-ins . | . . . . Cave-ins Triggered . | . . . . Exploration Rate (%) 44 | 4 65 97 13 Regions Visited 3 Branch Regions 2 Pre-discovered Areas 1 | . . 1 . Known Exits Taken 1 | . 1 . . Unknown Exits Taken 2 | 1 . 1 . Scrap Searched . | . . . . Spaces Dug . | . . . . Terrain Destroyed . | . . . . Melee . | . . . . Projectile . | . . . . AOE . | . . . . Terrain Rammed . | . . . . Walls Destroyed . | . . . . Machines Disabled . | . . . . Actions | -11 -10 -10 -10 --------- Run | Yrd Mat Min Sub Total 1245 | 75 478 546 146 Wait 20 | . 3 1 16 Move 1126 | 64 416 525 121 Hop . | . . . . Pick Up 6 | 2 4 . . Fast Attach 12 | 7 4 1 . Attach 6 | . 3 1 2 Detach 3 | 1 2 . . Swap 1 | . 1 . . Drop 1 | . . . 1 Fire 60 | . 39 15 6 Melee . | . . . . Ram 6 | . 3 3 . Kick . | . . . . Crush 4 | 1 3 . . Escape Stasis . | . . . . Rewire . | . . . . Trap . | . . . . Miscellaneous . | . . . . Route ------- -11/Scrapyard -10/Materials (discovered 2 exits: [*Mat] / *Min) -10/Mines (discovered 3 exits: [*Mat x2] / [*Sub]) -10/Subcaves History --------- Turn | Location | Event 2 | -11/Scrapyard | Met Revision 17 13 | -11/Scrapyard | Discovered new exit (range 15) 111 | -11/Scrapyard | Entered Materials 210 | -10/Materials | Identified exit to Mines 302 | -10/Materials | Build established: Mutant 688 | -10/Materials | Lost 4 parts (1p2n1w) 759 | -10/Materials | Core integrity fell below 50% 825 | -10/Materials | Discovered new exit (range 11) 873 | -10/Materials | Entered Mines 1071 | -10/Mines | Learned location of Mines (-9) 1084 | -10/Mines | Assembled infested the area 1089 | -10/Mines | Assisted by a Guerilla fighting off Assembled 1124 | -10/Mines | Discovered new exit (range 16) 1211 | -10/Mines | Discovered new exit (range 10) 1457 | -10/Mines | Core integrity fell below 20% 1461 | -10/Mines | Discovered new exit (range 8) 1469 | -10/Mines | Entered Subcaves 1610 | -10/Subcaves | Destroyed by ZH-YJL(R) with Subdweller Machine Gun Last Messages --------------- The unstable cave ceiling collapses. D-53 Grenadier destroyed. System corrupted: IFF burst signal emitted. Wheel destroyed. EXIT=FOUND LOCATION=UNKNOWN AMBIENT_HEAT=-10 GOAL=ESCAPE Dropped Broken Lgt. Treads. Subatomizers dissect the Broken Lgt. Treads. Acquired 14 matter. Acquired 10 matter. Subatomizers dissect the Broken Lgt. Treads. System corrupted: Component data lost. System corrupted: Heat flow error (+114). Com. Wheel destroyed. Assault Rifle destroyed. Wheel destroyed. Lgt. Assault Rifle destroyed. System corrupted: Heat flow error (+105). Map ----- +----------------------------------------------------+ | | | | | ?????????????????????????????????????????????????? | | ?????????????????????????????????????????????????? | | ?????????????????????????????????????????????????? | | ?????????????????????????????????????????????????? | | ?????????????????????????????????????????????????? | | ????????????###??????????????????????????????????? | | ????????????##"??????????????????????????????????? | | ????????????## ??????????????????????????????????? | | ????????????##" ##???????????????????????????????? | | ??????????????" ##???????????????????????????????? | | ??????????????? "#####??????????????????????????? | | ????????????????" #####??????????????????????????? | | ???????????????? #??????????????????????????? | | ???????????????? ## ?????????????????????????? | | ????????######""##" ##" ####???????????????????? | | ????????########## <###########????????????????? | | ????? ## " ### ######???????????????? | | ????? $ # #########?????????? | | ????? #### ## ########?????????? | | ????? #### ### ###????????? | | ???????? #### #### R # ????????? | | ??????? #### ## R## ????? | | ???????### ## ## # # ## ?????? | | ???????## ###@ ### ####? ###?????? | | ???????## ## ## #### ##????###??????? | | ??????### ### ### #########?????????????? | | ###???## ## ############?#####?????????????? | | ###???## ## ###########????????????????????? | | ####### ### ##????????????????????????? | | ###### ### ###????????????????????????? | | ##### ### ###????????????????????????? | | #### ### ##?????????????????????????? | | ### #### ####?????????????????????????? | | ### ###### ####?????????????????????????? | | ## ###### ##???????????????????????????? | | ### ## ###???????????????????????????? | | # #### ####???????????????????????????? | | # ### ####????????????????????????????? | | ## ####?????????????????????????????? | | ### ####??????????????????????????????? | | #### ######???????????????????????????????? | | ####### #####????????????????????????????????? | | ######## ##???????????????????????????????????? | | ##???#### ##???????????????????????????????????? | | #?????#### ###???????????????????????????????????? | | ???????#######???????????????????????????????????? | | ????????#####????????????????????????????????????? | | ?????????????????????????????????????????????????? | +----------------------------------------------------+ Best States ------------- Heat Dissipation 25 Energy Generation 10 Energy Capacity 250 Matter Stores 300 Matter Capacity 300 Sight Range 16 Terrain Scan Density 10 Evasion (%) 50 Recoil Reduction 2 Item Schematics ----------------- None Robot Schematics ------------------ None Fabricated ------------ Nothing Repaired ---------- Nothing Alien Tech Used ----------------- None Achievements -------------- None Challenges ------------ None Game ------ Seed VariableProtonFacilitator Manual? 0 Play Time 00:12:04 Cumulative 100.0 hours Start 2025.05.26 @ 00:18:12 End 2025.05.26 @ 00:29:35 Sessions 1 Manual Loads 0 Difficulty Rogue Special Mode None Game No. 107 Rogue 107 Adventurer 0 Explorer 0 Win Type - Total 2 Types 1/0/0/1/0/0/0/0/0/0 Lore% 54 Gallery% 53 Achievement% 47 Wizard Run 0 Options --------- Layout 1 ASCII 0 Keyboard 1 Movement Arrows Keybinds 0 Fullscreen 1 Font 24/Smallcaps Map View 50x35 Zoom Use 0% Tactical HUD 0 Map Filters NONE Filters NONE Steam 1 RUN: e5fb4757-2796-4a98-9ff8-af40056163a3